bitfinex/quotes_ETHUSD_20230905
["timestamp","ask_amount","ask_price","bid_price","bid_amount"]
[1693882731545,8.02606,1619.7,1619.6,3.40290285]
[1693882732111,8.02606,1619.7,1619.6,2.7552]
[1693882732446,14.20004,1619.7,1619.6,2.7552]
[1693882732628,20.37402,1619.7,1619.5,0.64770285]
[1693882732798,8.211762,1619.6,1619.5,0.64770285]
[1693882733023,6.17398,1619.7,1619.5,7.14665996]
[1693882733224,12.34826,1619.7,1619.5,0.97191996]
[1693882733427,12.34826,1619.7,1619.5,0.64660383]
[1693882733625,12.34826,1619.7,1619.5,1.61852379]
[1693882735572,12.34826,1619.7,1619.6,0.64660383]
[1693882736778,14.420805,1619.7,1619.6,0.64660383]
[1693882737172,14.63113947,1619.7,1619.6,0.64660383]
[1693882739051,6.38431447,1619.7,1619.6,0.64660383]
[1693882739313,6.87800615,1619.7,1619.6,0.64660383]
[1693882743409,6.87800615,1619.7,1619.6,1.61852379]
[1693882745707,13.05234615,1619.7,1619.6,1.61852379]
[1693882746611,13.05234615,1619.7,1619.6,0.97191996]
[1693882746823,15.19529977,1619.7,1619.6,0.97191996]
[1693882747186,15.19529977,1619.7,1619.6,1.61800385]
[1693882748099,21.36963977,1619.7,1619.6,1.61800385]
[1693882748596,21.36963977,1619.7,1619.6,0.97191996]
[1693882749373,20.87594809,1619.7,1619.6,0.97191996]
[1693882749613,20.87594809,1619.7,1619.6,0.64619017]
[1693882750399,14.70160809,1619.7,1619.6,0.64619017]
[1693882751096,21.98794809,1619.7,1619.6,0.64619017]
[1693882751297,21.98794809,1619.7,1619.6,1.61811013]
[1693882751495,21.98794809,1619.7,1619.6,0.64619017]
[1693882751793,21.98794809,1619.7,1619.6,1.61811013]
[1693882752094,25.05496235,1619.7,1619.6,1.61811013]
[1693882752731,26.67350435,1619.7,1619.6,1.61811013]
[1693882753930,25.56150435,1619.7,1619.6,1.61811013]
[1693882754931,22.49449009,1619.7,1619.6,1.61811013]
[1693882755233,20.87594809,1619.7,1619.6,1.61811013]
[1693882755832,20.87594809,1619.7,1619.6,0.97191996]
[1693882765637,33.40296235,1619.7,1619.5,1.29589328]
[1693882765983,33.40296235,1619.7,1619.4,2.7588]
[1693882765984,14.59694016,1619.6,1619.4,2.7588]
[1693882766131,18.52422,1619.5,1619.4,2.7588]
[1693882766337,21.52422,1619.5,1619.4,2.7588]
[1693882766646,24.80614159,1619.5,1619.4,2.7588]
[1693882766874,28.84398537,1619.5,1619.4,2.7588]
[1693882770847,28.84398537,1619.5,1619.1,0.64743956]
[1693882771051,1.112,1619.3,1619.1,0.64743956]
[1693882771247,12.35176,1619.2,1619.1,0.64743956]
[1693882771462,12.5653449,1619.2,1619.1,0.64743956]
[1693882771659,19.03636008,1619.2,1619.1,0.64743956]
[1693882771960,25.21224008,1619.2,1619.1,0.64743956]
[1693882772750,24.10024008,1619.2,1619.1,0.64743956]
[1693882773304,12.5653449,1619.2,1619.1,0.64743956]
[1693882775681,18.7412249,1619.2,1619.1,0.64743956]
[1693882778313,22.92023916,1619.2,1618.9,9.56e-06]
[1693882778472,3.06701426,1619.1,1618.8,0.97115934]
[1693882778669,12.3533,1619.0,1618.8,2.26705262]
[1693882779003,12.3533,1619.0,1618.9,0.97115934]
[1693882779363,12.3533,1619.0,1618.8,2.26705262]
[1693882779869,12.3533,1619.0,1618.9,0.97115934]
[1693882780070,12.3533,1619.0,1618.8,2.26705262]
[1693882780912,12.3533,1619.0,1618.9,0.97115934]
[1693882782118,12.55516021,1619.0,1618.9,0.97115934]
[1693882782319,12.55516021,1619.0,1618.8,2.26705262]
[1693882782619,3.06701426,1618.9,1618.8,2.26705262]
[1693882782775,21.59810426,1618.9,1618.7,2.26705262]
[1693882783221,21.59810426,1618.9,1618.7,0.97115934]
[1693882784883,1.112,1618.8,1618.7,0.97115934]
[1693882785082,6.45002469,1618.8,1618.7,0.97115934]
[1693882785317,22.71124426,1618.8,1618.7,0.97115934]
[1693882788386,22.71124426,1618.8,1618.7,1.61608669]
[1693882789023,22.71124426,1618.8,1618.7,0.97115934]
[1693882789523,22.71124426,1618.8,1618.7,1.61599119]
[1693882790728,12.35482,1618.8,1618.7,0.97115934]
[1693882790896,15.45482,1618.8,1618.7,2.26705262]
[1693882791498,15.45482,1618.8,1618.7,0.97115934]
[1693882791683,15.45482,1618.8,1618.7,2.26705262]
[1693882791889,15.45482,1618.8,1618.7,1.29589328]
[1693882795864,15.45482,1618.8,1618.7,2.90769831]
[1693882797122,15.65653371,1618.8,1618.7,2.90769831]
[1693882800400,3.30171371,1618.8,1618.7,7.78959503]
[1693882800658,3.30171371,1618.8,1618.7,22.97629354]
[1693882800959,1.371e-05,1618.8,1618.7,21.0421275]
[1693882801561,1.371e-05,1618.8,1618.7,1.9346195]
[1693882801925,1.371e-05,1618.8,1618.7,6.17779]
[1693882802619,1.371e-05,1618.8,1618.7,8.1124095]
[1693882802965,1.371e-05,1618.8,1618.7,1.9346195]
[1693882803118,6.17742371,1618.8,1618.7,1.9346195]
[1693882803344,6.17742371,1618.8,1618.6,1.9346195]
[1693882804592,6.17742371,1618.8,1618.7,1.9346195]
[1693882805386,1.371e-05,1618.8,1618.7,1.9346195]
[1693882807290,1.371e-05,1618.8,1618.7,8.1124095]
[1693882807475,1.371e-05,1618.8,1618.7,1.9346195]
[1693882808698,1.371e-05,1618.8,1618.7,4.6629195]
[1693882809703,12.35483371,1618.8,1618.7,2.7283]
[1693882809905,7.41290708,1618.8,1618.7,4.66831379]
[1693882810463,6.17742371,1618.8,1618.7,4.66831379]
[1693882811902,6.17742371,1618.8,1618.7,2.7283]
[1693882813814,6.33831294,1618.8,1618.7,2.7283]
[1693882814127,15.5827372,1618.8,1618.7,1.94324902]
[1693882814303,15.5827372,1618.8,1618.3,12.88841088]
[1693882814304,4.55827372,1618.7,1617.9,0.107]
[1693882814647,36.96551426,1618.2,1618.0,0.97073813]
[1693882814817,3.61582788,1618.1,1617.9,0.107]
[1693882815014,3.06701426,1618.0,1617.9,0.107]
[1693882815198,43.56967514,1618.0,1617.8,0.1]
[1693882815404,5.85033134,1617.9,1617.7,0.1]
[1693882815605,35.02015,1617.8,1617.7,0.1]
[1693882815773,41.08716426,1617.8,1617.7,0.1]
[1693882816229,41.08716426,1617.8,1617.3,0.64719223]
[1693882816519,6.183,1617.4,1617.2,0.1]
[1693882817111,15.43277426,1617.4,1617.2,0.1]
[1693882817314,15.43277426,1617.4,1617.2,0.74719223]
[1693882817470,15.43277426,1617.4,1617.2,0.1]
[1693882817673,18.70830769,1617.4,1617.2,0.1]
[1693882817919,17.59430769,1617.4,1617.2,0.1]
[1693882818281,19.15730769,1617.4,1617.2,0.1]
[1693882818716,16.99577426,1617.4,1617.2,0.1]
[1693882818930,7.900691,1617.4,1617.2,0.1]
[1693882819533,23.33322526,1617.4,1617.2,0.1]
[1693882820043,3.06701426,1617.3,1617.2,0.1]
[1693882820246,12.36628,1617.3,1617.2,0.1]
[1693882820949,23.79943136,1617.3,1617.2,0.1]
[1693882822509,12.36628,1617.3,1617.2,0.1]
[1693882823355,23.17943426,1617.3,1617.2,0.1]
[1693882823507,26.17943426,1617.3,1617.2,0.1]
[1693882824645,6.18314,1617.3,1617.2,0.1]
[1693882825412,9.463691,1617.4,1617.2,0.1]
[1693882825758,7.900691,1617.4,1617.2,0.1]
[1693882826173,0.1590915,1617.3,1617.2,0.1]
[1693882826671,7.900691,1617.4,1617.2,0.1]
[1693882828038,6.18276,1617.4,1617.2,0.1]
[1693882828247,6.18276,1617.4,1617.2,0.738383]
[1693882830378,6.18276,1617.4,1617.2,0.1]
[1693882831644,12.36567,1617.4,1617.2,0.1]
[1693882831945,18.54858,1617.4,1617.2,0.1]
[1693882832687,21.61643426,1617.3,1617.2,0.1]
[1693882833159,18.54942,1617.3,1617.2,0.1]
[1693882833523,21.022638,1617.3,1617.2,0.1]
[1693882834283,25.65265226,1617.3,1617.2,0.1]
[1693882834605,25.65265226,1617.3,1617.1,0.1]
[1693882834606,27.08965226,1617.3,1617.1,0.1]
[1693882834815,3.06701426,1617.2,1617.1,0.1]
[1693882835125,8.1944195,1617.2,1617.1,0.1]
[1693882835285,12.36704,1617.2,1617.1,0.1]
[1693882835480,6.18352,1617.2,1617.1,0.1]
[1693882835993,12.36672,1617.3,1617.1,0.1]
[1693882836723,15.43373426,1617.3,1617.1,0.1]
[1693882836924,12.36667,1617.3,1617.1,0.1]
[1693882837387,14.27107082,1617.3,1617.1,0.1]
[1693882838092,3.06701426,1617.2,1617.1,0.1]
[1693882838298,21.61757426,1617.2,1617.1,0.1]
[1693882838900,9.25053426,1617.2,1617.1,0.1]
[1693882839139,17.90846926,1617.2,1617.1,0.1]
[1693882839442,12.36704,1617.2,1617.1,0.1]
[1693882840145,6.18352,1617.2,1617.1,0.1]
[1693882840445,6.18332,1617.3,1617.1,0.1]
[1693882840601,12.36663,1617.3,1617.1,0.1]
[1693882841303,0.19283619,1617.2,1617.1,0.1]
[1693882841638,6.37635619,1617.2,1617.1,0.1]
[1693882847137,20.61769881,1617.2,1617.1,0.1]
[1693882849324,14.43417881,1617.2,1617.1,0.1]
[1693882852765,23.68471307,1617.2,1617.1,0.1]
[1693882858479,24.80071307,1617.2,1617.1,0.1]
[1693882858695,25.28071307,1617.2,1617.1,0.1]
[1693882858896,28.28071307,1617.2,1617.1,0.1]
[1693882860305,28.92111366,1617.2,1617.1,0.1]
[1693882860975,28.70370476,1617.2,1617.1,0.1]
[1693882864109,3.61582788,1617.1,1617.0,0.1]
[1693882864264,3.61582788,1617.1,1616.8,0.007]
[1693882864265,13.03321262,1617.1,1616.8,0.007]
[1693882864477,13.03321262,1617.1,1616.3,1.61900044]
[1693882864478,3.0,1616.4,1616.3,1.61900044]
[1693882864709,43.80232214,1616.4,1616.1,0.64826231]
[1693882864911,6.06701426,1616.2,1615.9,0.64826231]
[1693882865083,1.116,1616.0,1615.6,1.61900044]
[1693882865373,22.74872426,1615.9,1615.6,1.61900044]
[1693882865684,6.18857,1615.9,1615.6,0.64826231]
[1693882865891,12.37667,1616.0,1615.7,1.76426231]
[1693882866078,12.37667,1616.0,1615.7,7.95342231]
[1693882866275,12.37667,1616.0,1615.4,0.64693062]
[1693882866276,3.06701426,1615.7,1615.4,0.64693062]
[1693882866609,6.1894,1615.7,1615.3,13.02847062]
[1693882866772,3.06701426,1615.6,1615.5,1.116]
[1693882866976,9.25690426,1615.6,1615.3,1.116]
[1693882867218,15.44679426,1615.6,1615.1,1.12639773]
[1693882867512,21.63668426,1615.6,1615.1,6.20173773]
[1693882867711,2.16366843,1615.5,1615.1,0.01039773]
[1693882867912,2.16366843,1615.5,1615.0,8.53467062]
[1693882867913,15.44798426,1615.4,1615.0,8.34506835]
[1693882869111,3.06701426,1615.2,1615.0,1.50639773]
[1693882869317,18.57468,1615.1,1615.0,1.50639773]
[1693882869483,25.85186369,1615.1,1615.0,1.50639773]
[1693882869678,28.37186369,1615.1,1615.0,1.50639773]
[1693882869983,20.61430369,1615.1,1615.0,1.50639773]
[1693882870185,3.72966843,1615.5,1615.0,1.50639773]
[1693882870186,6.19122,1615.2,1615.0,1.50639773]
[1693882870413,0.92862007,1615.2,1615.0,7.69834773]
[1693882870617,0.92862007,1615.2,1615.1,1.566]
[1693882870819,2.477263,1615.5,1615.1,20.14068]
[1693882871113,7.11820017,1615.6,1615.1,20.14068]
[1693882871335,6.18981,1615.6,1615.3,6.19072]
[1693882871684,6.18896,1615.8,1615.3,13.94752]
[1693882872006,6.18896,1615.8,1615.5,12.37997]
[1693882872213,3.06701426,1615.7,1615.4,6.19018]
[1693882872388,15.44593426,1615.7,1615.3,6.19061]
[1693882872587,8.35305143,1615.7,1615.4,6.19041]
[1693882873088,12.37736,1615.9,1615.4,12.38082]
[1693882873322,9.25557426,1615.9,1615.4,13.94682]
[1693882873523,6.18856,1615.9,1615.4,13.94682]
[1693882873731,6.18856,1615.9,1615.4,20.13723]
[1693882873910,6.18856,1615.9,1615.5,1.566]
[1693882874109,6.18856,1615.9,1615.6,6.18957]
[1693882874538,12.37726,1615.9,1615.6,6.18957]
[1693882876531,3.06701426,1615.8,1615.4,12.38033]
[1693882876744,6.18929,1615.7,1615.5,6.19002]
[1693882877099,6.18897,1615.8,1615.5,12.38005]
[1693882877604,6.18856,1615.9,1615.5,16.259666]
[1693882879960,12.3744,1616.3,1615.8,18.56646]
[1693882880150,6.18737,1616.2,1615.8,20.13246]
[1693882880453,9.25414426,1616.3,1615.8,20.13246]
[1693882880603,11.41071469,1616.3,1615.8,20.13246]
[1693882880942,17.59781469,1616.3,1615.8,13.9436]
[1693882881143,23.78491469,1616.3,1615.8,13.9436]
[1693882881935,23.78491469,1616.3,1615.8,20.13248]
[1693882881936,17.59781469,1616.3,1615.8,20.13248]
[1693882882852,14.53080043,1616.3,1615.9,1.566]
[1693882883001,14.53080043,1616.3,1615.9,7.75432]
[1693882883207,14.53080043,1616.3,1615.9,6.18848]
[1693882883208,7.64054004,1616.2,1615.9,6.18848]
[1693882884677,7.64054004,1616.2,1615.8,7.75471]
[1693882884678,16.8950143,1616.2,1615.7,13.94429]
[1693882884831,9.25476426,1616.1,1615.6,15.17592]
[1693882885286,18.56473,1616.0,1615.6,2.7968]
[1693882885445,4.92348726,1615.9,1615.6,2.7968]
[1693882885651,11.11225726,1615.9,1615.6,2.7968]
[1693882885963,17.30075726,1615.9,1615.6,2.7968]
[1693882886969,6.18843,1616.0,1615.6,8.9864]
[1693882887130,6.18843,1616.0,1615.6,22.9317]
[1693882887131,3.06701426,1616.0,1615.6,22.9317]
[1693882888035,6.1878,1616.1,1615.6,22.9317]
[1693882888237,3.59228004,1616.2,1615.7,1.566]
[1693882888437,10.7074743,1616.2,1615.8,12.37738]
[1693882888950,10.7074743,1616.2,1615.8,13.94338]
[1693882889779,1.45308004,1616.2,1615.8,13.94338]
[1693882889992,7.11452454,1616.4,1615.9,1.566]
[1693882890284,6.18697,1616.3,1616.0,7.75404]
[1693882892238,18.44043426,1616.4,1616.0,7.75404]
[1693882892444,2.1202,1616.5,1616.0,16.55545]
[1693882892782,10.08392526,1616.5,1616.1,1.566]
[1693882892980,6.67226971,1616.7,1616.2,13.94054]
[1693882893286,3.06701426,1616.6,1616.2,13.94054]
[1693882893444,3.06701426,1616.6,1616.3,1.566]
[1693882893643,3.06701426,1616.6,1616.3,7.75276]
[1693882893910,3.99227169,1616.6,1616.3,7.75276]
[1693882894073,0.92525743,1616.6,1616.3,7.75276]
[1693882895069,6.18556,1616.7,1616.3,7.75276]
[1693882895414,8.35191,1616.8,1616.3,7.75276]
[1693882895415,17.53728,1616.8,1616.4,1.566]
[1693882895565,3.0,1616.7,1616.4,7.75255]
[1693882895771,3.0,1616.7,1616.4,10.51325]
[1693882897207,5.23371426,1616.8,1616.5,1.566]
[1693882897508,13.47912969,1616.8,1616.5,1.566]
[1693882898070,13.47912969,1616.8,1616.4,10.51325]
[1693882898275,25.84925969,1616.8,1616.4,2.7607]
[1693882899866,3.06701426,1616.7,1616.4,2.7607]
[1693882900066,6.18582,1616.6,1616.4,2.7607]
[1693882900271,7.72966743,1616.6,1616.4,2.7607]
[1693882905419,1.54384743,1616.6,1616.4,2.7607]
[1693882907211,10.79674169,1616.6,1616.4,2.7607]
[1693882907410,16.98262169,1616.6,1616.4,2.7607]
[1693882907574,3.06701426,1616.5,1616.0,6.18793]
[1693882907774,12.37354,1616.4,1616.0,2.5539]
[1693882907974,10.49141826,1616.3,1616.0,2.5539]
[1693882909798,10.49141826,1616.3,1616.0,8.742]
[1693882909998,4.30436826,1616.3,1616.0,14.93011]
[1693882910203,3.06701426,1616.3,1616.0,8.742]
[1693882910403,3.06701426,1616.3,1616.0,14.93011]
[1693882910991,10.813913,1616.5,1616.0,8.742]
[1693882911205,5.21881426,1616.5,1616.0,16.49611]
[1693882911389,0.52188143,1616.4,1616.0,16.49611]
[1693882911585,0.52188143,1616.4,1616.1,1.566]
[1693882911791,0.52188143,1616.4,1616.1,7.75359]
[1693882912098,0.52188143,1616.4,1616.1,13.94132]
[1693882912303,2.1518,1616.5,1616.1,13.94132]
[1693882912529,5.1518,1616.5,1616.1,13.94132]
[1693882912730,11.338,1616.5,1616.1,13.94132]
[1693882912931,11.338,1616.5,1616.1,7.75359]
[1693882915631,17.5242,1616.5,1616.1,6.18759]
[1693882915805,1.75242,1616.4,1616.1,6.18759]
[1693882917130,14.12614,1616.4,1616.0,2.5539]
[1693882917494,7.93928,1616.4,1616.0,10.30797]
[1693882917927,14.12586,1616.4,1616.0,4.1199]
[1693882918409,7.939,1616.4,1616.0,10.30798]
[1693882920242,8.338,1616.5,1616.0,18.764544]
[1693882920406,14.40339345,1616.6,1616.2,7.7533]
[1693882920606,17.47040771,1616.6,1616.2,7.7533]
[1693882923855,17.47040771,1616.6,1616.2,6.1873]
[1693882923856,17.47028771,1616.6,1616.2,6.1873]
[1693882924342,17.47028771,1616.6,1616.2,7.7533]
[1693882924536,1.74702877,1616.5,1616.2,7.7533]
[1693882925838,1.54384743,1616.6,1616.3,1.566]
[1693882926050,4.54384743,1616.6,1616.3,7.75272]
[1693882926216,3.0,1616.6,1616.3,7.75272]
[1693882926398,3.0,1616.6,1616.3,13.93969]
[1693882926835,3.0,1616.6,1616.3,7.75272]
[1693882927968,0.92775854,1616.7,1616.4,1.566]
[1693882928243,0.92775854,1616.7,1616.6,1.566]
[1693882928604,12.36953,1616.9,1616.6,1.566]
[1693882928843,17.57908171,1616.9,1616.6,1.566]
[1693882929040,11.39423171,1616.9,1616.6,1.566]
[1693882929253,8.32721745,1616.9,1616.6,1.566]
[1693882934944,12.05584447,1617.0,1616.6,1.566]
[1693882935112,3.0,1616.9,1616.6,7.75174]
[1693882936028,9.18467,1616.9,1616.6,7.75174]
[1693882936228,3.0,1616.9,1616.6,7.75174]
[1693882938077,3.0,1616.9,1616.7,1.116]
[1693882938984,9.18469,1616.9,1616.7,1.116]
[1693882940782,3.0,1616.9,1616.7,1.116]
[1693882942177,2.2283,1617.0,1616.7,1.116]
[1693882942378,2.2283,1617.0,1616.7,7.30141]
[1693882942585,8.4126,1617.0,1616.7,1.116]
[1693882942783,2.2283,1617.0,1616.7,7.3014]
[1693882943277,8.41261,1617.0,1616.7,7.3014]
[1693882944382,6.18431,1617.0,1616.8,1.116]
[1693882944681,6.18393,1617.1,1616.8,1.116]
[1693882945281,6.18393,1617.1,1616.8,3.8111]
[1693882945483,2.0822,1617.2,1616.8,3.8111]
[1693882945673,8.26586,1617.2,1617.0,1.116]
[1693882945881,8.26586,1617.2,1616.8,8.88014]
[1693882945882,15.95885245,1617.2,1616.9,1.116]
[1693882946455,3.59143245,1617.2,1617.0,1.116]
[1693882946684,8.26573,1617.2,1617.0,1.116]
[1693882948366,2.0822,1617.2,1617.0,1.116]
[1693882948559,6.18335,1617.3,1617.1,1.116]
[1693882949294,6.18335,1617.3,1617.0,1.116]
[1693882951270,6.18335,1617.3,1617.1,1.116]
[1693882952510,12.36667,1617.3,1617.1,1.116]
[1693882952695,6.18332,1617.3,1617.1,1.116]
[1693882953100,12.36646,1617.3,1617.1,1.116]
[1693882953776,6.18314,1617.3,1617.1,1.116]
[1693882954512,15.42204761,1617.4,1617.1,1.116]
[1693882956405,3.05615761,1617.4,1617.2,1.116]
[1693882957694,0.92735761,1617.4,1617.2,7.68887]
[1693882958280,0.49272581,1617.5,1617.2,7.68887]
[1693882958500,9.34021238,1617.6,1617.3,1.116]
[1693882960516,15.52233238,1617.6,1617.3,1.116]
[1693882960821,15.52233238,1617.6,1617.2,1.5054]
[1693882961683,21.05974988,1617.6,1617.2,1.116]
[1693882961883,27.24186988,1617.6,1617.1,10.0779]
[1693882963115,27.73289606,1617.6,1617.1,10.0779]
[1693882965626,27.73289606,1617.6,1617.2,1.116]
[1693882965928,3.06701426,1617.5,1617.2,1.116]
[1693882966098,9.24965426,1617.5,1617.2,1.116]
[1693882966399,12.02299087,1617.5,1617.2,1.116]
[1693882967699,18.20563087,1617.5,1617.2,1.116]
[1693882970096,6.18264,1617.5,1617.2,1.116]
[1693882970339,16.01354856,1617.6,1617.3,1.116]
[1693882970340,9.83118856,1617.6,1617.3,1.116]
[1693882970639,12.89820282,1617.6,1617.3,1.116]
[1693882971464,6.71608282,1617.6,1617.3,1.116]
[1693882971744,12.89811282,1617.6,1617.3,1.116]
[1693882973417,15.7242841,1617.6,1617.3,1.116]
[1693882975559,15.7242841,1617.6,1617.2,7.29929]
[1693882975744,12.89811282,1617.6,1617.2,7.29929]
[1693882977383,3.64906856,1617.6,1617.3,1.116]
[1693882977542,1.51926856,1617.6,1617.3,1.116]
[1693882977900,1.51926856,1617.6,1617.4,6.18276]
[1693882978431,0.59202618,1617.6,1617.4,6.18276]
[1693882978866,0.59202618,1617.6,1617.4,19.896454]
[1693882979064,0.59202618,1617.6,1617.5,1.116]
[1693882980346,0.59202618,1617.6,1617.4,11.174034]
[1693882982497,0.49202618,1617.6,1617.4,3.6431]
[1693882988508,0.49202618,1617.6,1617.4,9.82584]
[1693882990206,0.001,1617.6,1617.4,14.8926]
[1693882990406,0.001,1617.6,1617.5,1.116]
[1693882990607,0.001,1617.6,1617.5,13.48076]
[1693882990943,0.001,1617.6,1617.5,15.69982]
[1693882995741,0.001,1617.6,1617.5,9.51744]
[1693882997702,0.001,1617.6,1617.5,15.69982]
[1693882998318,0.001,1617.6,1617.5,9.51744]
[1693882998720,0.001,1617.6,1617.5,15.69982]
[1693883000541,0.001,1617.6,1617.5,16.81582]
[1693883000748,0.001,1617.6,1617.5,22.9982]
[1693883003525,0.001,1617.6,1617.5,16.81582]
[1693883003924,0.001,1617.6,1617.5,22.9982]
[1693883008526,0.001,1617.6,1617.5,6.18238]
[1693883008726,0.001,1617.6,1617.4,2.5271]
[1693883010072,0.001,1617.6,1617.4,8.70981]
[1693883011233,0.001,1617.6,1617.5,1.116]
[1693883011444,0.001,1617.6,1617.5,13.48076]
[1693883011769,0.001,1617.6,1617.5,15.699817]
[1693883013342,0.001,1617.6,1617.5,7.29838]
[1693883015595,0.001,1617.6,1617.5,6.18238]
[1693883017760,0.001,1617.6,1617.5,12.36476]
[1693883019488,0.001,1617.6,1617.5,13.48076]
[1693883019668,0.001,1617.6,1617.5,19.66314]
[1693883019880,0.001,1617.6,1617.5,22.500418]
[1693883028863,0.001,1617.6,1617.5,6.18238]
[1693883029559,0.2998948,1617.6,1617.5,6.18238]
[1693883033022,0.2998948,1617.6,1617.4,16.00838]
[1693883033023,0.2998948,1617.6,1617.4,2.5271]
[1693883033302,0.2998948,1617.6,1617.4,8.70972]
[1693883034009,0.2998948,1617.6,1617.4,14.89248]
[1693883043274,0.94300927,1617.6,1617.4,14.89248]
[1693883044840,0.94300927,1617.6,1617.4,21.07524]
[1693883045795,0.7102229,1617.6,1617.4,6.18262]
[1693883045997,3.71012873,1617.5,1617.2,2.6757]
[1693883046244,3.71012873,1617.5,1617.1,0.64693062]
[1693883046245,9.89266873,1617.5,1617.1,0.64693062]
[1693883046402,7.17205687,1617.4,1617.1,0.64693062]
[1693883046602,7.47018247,1617.4,1617.1,0.64693062]
[1693883046796,1.28739247,1617.4,1617.1,0.64693062]
[1693883046998,3.06701426,1617.3,1617.0,0.64693062]
[1693883047242,3.06701426,1617.3,1617.0,6.18416]
[1693883047443,3.06701426,1617.3,1617.0,12.36831]
[1693883047444,5.15061426,1617.3,1617.0,12.36831]
[1693883047745,5.15061426,1617.3,1616.8,0.64693062]
[1693883047746,0.51506143,1617.2,1616.8,0.64693062]
[1693883047910,12.36794,1617.1,1616.8,0.64693062]
[1693883048109,15.94955569,1617.2,1616.8,0.64693062]
[1693883048443,8.26761,1617.1,1616.8,0.64693062]
[1693883048743,2.0836,1617.1,1616.8,13.01698062]
[1693883049241,3.26852157,1617.1,1616.8,6.185]
[1693883049839,6.33553583,1617.1,1616.7,10.47166527]
[1693883050148,6.33553583,1617.1,1616.7,16.65697527]
[1693883050295,6.33553583,1617.1,1616.7,15.69317062]
[1693883057552,4.18301426,1617.0,1616.5,0.64693062]
[1693883057849,12.78785143,1616.9,1616.4,9.35916062]
[1693883058007,17.94239569,1616.9,1616.4,3.17273062]
[1693883058214,3.06701426,1616.8,1616.4,9.35928062]
[1693883058547,3.06701426,1616.8,1616.4,15.54586062]
[1693883058749,4.86127583,1616.8,1616.4,15.54586062]
[1693883059110,4.86127583,1616.8,1616.4,21.73244062]
[1693883060076,4.86127583,1616.8,1616.4,15.54586062]
[1693883061377,11.04634583,1616.8,1616.4,15.54586062]
[1693883061573,11.04634583,1616.8,1616.4,9.35928062]
[1693883061796,11.04634583,1616.8,1616.4,2.4758]
[1693883061797,1.10463458,1616.7,1616.4,2.4758]
[1693883062001,4.17164884,1616.7,1616.4,6.1865]
[1693883062316,6.26224884,1616.7,1616.4,6.1865]
[1693883063718,6.26224884,1616.7,1616.4,13.02001062]
[1693883065593,6.26224884,1616.7,1616.4,6.83343062]
[1693883065914,0.62622488,1616.6,1616.4,6.83343062]
[1693883066625,0.62622488,1616.6,1616.4,13.02001062]
[1693883067931,1.79426157,1616.8,1616.4,20.32259062]
[1693883068223,8.659413,1617.0,1616.4,20.32259062]
[1693883068224,2.2163,1616.9,1616.6,6.18574]
[1693883068521,5.28331426,1616.9,1616.6,6.18574]
[1693883069019,5.28331426,1616.9,1616.5,7.30184]
[1693883069219,5.28331426,1616.9,1616.5,12.37187]
[1693883069428,0.52833143,1616.8,1616.5,12.37187]
[1693883072331,0.52833143,1616.8,1616.5,13.01880062]
[1693883075728,0.52833143,1616.8,1616.5,19.20500062]
[1693883075961,18.08481647,1617.1,1616.5,20.32100062]
[1693883076119,3.06701426,1617.0,1616.5,20.32100062]
[1693883077031,3.06701426,1617.0,1616.6,2.5741]
[1693883077215,3.06701426,1617.0,1616.6,14.94526]
[1693883077417,11.90067647,1617.1,1616.6,14.94526]
[1693883077731,17.75358198,1617.1,1616.6,14.94526]
[1693883078376,17.75358198,1617.1,1616.6,16.06126]
[1693883079748,23.93763198,1617.1,1616.6,16.06126]
[1693883080047,3.06701426,1617.0,1616.6,2.5741]
[1693883080261,6.18475,1616.9,1616.6,2.5741]
[1693883080435,0.618475,1616.8,1616.6,2.5741]
[1693883080772,6.803635,1616.8,1616.6,2.5741]
[1693883081216,6.803635,1616.8,1616.5,3.43423062]
[1693883082274,6.803635,1616.8,1616.5,9.62039062]
[1693883082950,9.87064926,1616.8,1616.5,2.7873]
[1693883083123,0.98706493,1616.7,1616.4,7.79710527]
[1693883083523,3.14776493,1616.7,1616.4,7.79710527]
[1693883085077,3.14776493,1616.7,1616.5,6.83300062]
[1693883085250,0.98706493,1616.7,1616.5,13.01920062]
[1693883085449,3.68548926,1616.8,1616.5,13.01920062]
[1693883088668,0.618475,1616.8,1616.5,13.01920062]
[1693883088848,2.1607,1616.9,1616.5,13.01920062]
[1693883089050,5.22771426,1616.9,1616.5,13.01920062]
[1693883089706,5.22771426,1616.9,1616.5,14.13520062]
[1693883090112,18.64898772,1617.1,1616.6,4.44953062]
[1693883090281,11.36175426,1617.0,1616.6,10.63510062]
[1693883090608,4.4930472,1617.0,1616.6,16.82092062]
[1693883090765,8.39111772,1617.1,1616.7,13.48662]
[1693883090963,17.64214198,1617.1,1616.7,14.13355062]
[1693883091181,11.45813198,1617.1,1616.7,14.13355062]
[1693883091511,11.45813198,1617.1,1616.7,13.01755062]
[1693883092565,17.64212198,1617.1,1616.7,13.01755062]
[1693883092765,1.7642122,1617.0,1616.7,13.01755062]
[1693883094513,14.85623073,1617.1,1616.7,14.13355062]
[1693883100149,14.85623073,1617.1,1616.7,7.94812062]
[1693883102150,11.78921647,1617.1,1616.7,7.94812062]
[1693883102306,5.60522647,1617.1,1616.7,14.13355062]
[1693883102506,5.60522647,1617.1,1616.7,16.66012249]
[1693883104046,5.1104,1617.1,1616.7,16.66012249]
[1693883104438,6.18365,1617.2,1616.8,1.116]
[1693883104615,9.91647884,1617.3,1616.9,9.90691]
[1693883104817,12.34037863,1617.3,1616.9,16.09158]
[1693883105220,12.84134711,1617.3,1616.9,16.09158]
[1693883105749,15.42637527,1617.3,1616.9,16.09158]
[1693883106336,15.42637527,1617.3,1616.9,9.90691]
[1693883107751,15.42637527,1617.3,1616.9,2.6063]
[1693883107752,3.06701426,1617.2,1616.9,2.6063]
[1693883107953,9.25079426,1617.2,1616.9,2.6063]
[1693883108257,6.1839,1617.1,1616.9,2.6063]
[1693883108454,8.34574743,1617.1,1616.9,2.6063]